[Event "Reykjavik Open 2025"]
[Site "Reykjavik, Iceland"]
[Date "2025.04.15"]
[Round "9.42"]
[White "Migot, Tangi"]
[Black "Adams, Henry"]
[Result "1-0"]
[WhiteElo "2347"]
[WhiteTitle "IM"]
[WhiteFideId "662445"]
[BlackElo "2077"]
[BlackFideId "464562"]
[TimeControl "90+30 +30 after 40 moves"]
[Variant "Standard"]
[ECO "C95"]
[Opening "Ruy Lopez: Closed, Breyer Defense, Zaitsev Hybrid"]
[StudyName "Round 9"]
1. e4 { [%clk 1:30:56] } 1... e5 { [%clk 1:30:55] } 2. Nf3 { [%clk 1:31:19] } 2... Nc6 { [%clk 1:31:21] } 3. Bb5 { [%clk 1:31:41] } 3... a6 { [%clk 1:31:48] } 4. Ba4 { [%clk 1:32:05] } 4... Nf6 { [%clk 1:32:13] } 5. O-O { [%clk 1:32:27] } 5... Be7 { [%clk 1:32:41] } 6. Re1 { [%clk 1:32:48] } 6... b5 { [%clk 1:33:07] } 7. Bb3 { [%clk 1:33:10] } 7... O-O { [%clk 1:33:34] } 8. h3 { [%clk 1:33:01] } 8... d6 { [%clk 1:32:06] } 9. c3 { [%clk 1:33:05] } 9... Nb8 { [%clk 1:32:17] } 10. d4 { [%clk 1:32:56] } 10... Nbd7 { [%clk 1:32:42] } 11. c4 { [%clk 1:31:50] } 11... c6 { [%clk 1:31:56] } 12. Qc2 { [%clk 1:31:43] } 12... Bb7 { [%clk 1:22:21] } 13. a3 { [%clk 1:30:42] } 13... Re8 { [%clk 1:19:45] } 14. c5 { [%clk 1:09:23] } 14... exd4 { [%clk 1:11:08] } 15. Ng5 { [%clk 0:45:22] } 15... Rf8 { [%clk 0:57:21] } 16. cxd6 { [%clk 0:44:27] } 16... Bxd6 { [%clk 0:54:37] } 17. f4 { [%clk 0:44:51] } 17... c5 { [%clk 0:42:41] } 18. Nxf7 { [%clk 0:36:29] } 18... Rxf7 { [%clk 0:43:01] } 19. Bxf7+ { [%clk 0:36:52] } 19... Kxf7 { [%clk 0:43:28] } 20. e5 { [%clk 0:37:17] } 20... Bc7 { [%clk 0:41:07] } 21. exf6 { [%clk 0:35:58] } 21... Qxf6 { [%clk 0:39:20] } 22. Qxh7 { [%clk 0:35:01] } 22... c4 { [%clk 0:37:19] } 23. Nd2 { [%clk 0:34:12] } 23... Nf8 { [%clk 0:33:32] } 24. Qh5+ { [%clk 0:33:08] } 24... g6 { [%clk 0:32:47] } 25. Qg4 { [%clk 0:31:18] } 25... Bxf4 { [%clk 0:29:44] } 26. Ne4 { [%clk 0:26:59] } 26... Bxe4 { [%clk 0:29:41] } 27. Rxe4 { [%clk 0:26:45] } 27... Bd6 { [%clk 0:27:28] } 28. Bg5 { [%clk 0:22:57] } 28... Qg7 { [%clk 0:26:09] } 29. Rf1+ { [%clk 0:20:09] } 29... Kg8 { [%clk 0:26:34] } 30. Bf6 { [%clk 0:20:22] } 30... Qf7 { [%clk 0:26:22] } 31. Be5 { [%clk 0:19:52] } 31... Qc7 { [%clk 0:25:54] } 32. Rxf8+ { [%clk 0:17:54] } 1-0

[Event "Reykjavik Open 2025"]
[Site "Reykjavik, Iceland"]
[Date "2025.04.15"]
[Round "9.43"]
[White "Omarsson, Adam"]
[Black "Haug, Havard"]
[Result "0-1"]
[WhiteElo "2072"]
[WhiteFideId "2311453"]
[BlackElo "2339"]
[BlackTitle "FM"]
[BlackFideId "1547887"]
[TimeControl "90+30 +30 after 40 moves"]
[Variant "Standard"]
[ECO "D35"]
[Opening "Queen's Gambit Declined: Exchange Variation, Positional Variation"]
[StudyName "Round 9"]
1. d4 { [%clk 1:30:58] } 1... Nf6 { [%clk 1:30:56] } 2. c4 { [%clk 1:31:24] } 2... e6 { [%clk 1:31:22] } 3. Nc3 { [%clk 1:31:50] } 3... d5 { [%clk 1:31:48] } 4. cxd5 { [%clk 1:32:16] } 4... exd5 { [%clk 1:32:15] } 5. Bg5 { [%clk 1:32:34] } 5... Be7 { [%clk 1:32:41] } 6. e3 { [%clk 1:32:51] } 6... O-O { [%clk 1:33:03] } 7. Bd3 { [%clk 1:32:58] } 7... Re8 { [%clk 1:33:26] } 8. Qc2 { [%clk 1:32:04] } 8... h6 { [%clk 1:33:43] } 9. Bh4 { [%clk 1:32:02] } 9... c6 { [%clk 1:33:40] } 10. Nf3 { [%clk 1:29:15] } 10... Nbd7 { [%clk 1:32:57] } 11. O-O { [%clk 1:28:40] } 11... Ne4 { [%clk 1:28:51] } 12. Bxe7 { [%clk 1:27:42] } 12... Qxe7 { [%clk 1:29:18] } 13. a3 { [%clk 1:18:44] } 13... Ndf6 { [%clk 1:20:26] } 14. b4 { [%clk 1:13:58] } 14... Bf5 { [%clk 1:18:26] } 15. Na4 { [%clk 1:04:02] } 15... Nd7 { [%clk 1:14:49] } 16. Nd2 { [%clk 0:55:17] } 16... Nxd2 { [%clk 1:13:12] } 17. Qxd2 { [%clk 0:55:42] } 17... Bxd3 { [%clk 1:12:40] } 18. Qxd3 { [%clk 0:56:06] } 18... b5 { [%clk 1:11:54] } 19. Nb2 { [%clk 0:55:55] } 19... Nb6 { [%clk 1:12:04] } 20. Qc3 { [%clk 0:37:33] } 20... Nc4 { [%clk 1:10:03] } 21. a4 { [%clk 0:36:51] } 21... a5 { [%clk 1:09:13] } 22. bxa5 { [%clk 0:32:36] } 22... b4 { [%clk 1:09:23] } 23. Qc2 { [%clk 0:32:52] } 23... Nxa5 { [%clk 1:09:11] } 24. Rfb1 { [%clk 0:32:17] } 24... Reb8 { [%clk 1:08:01] } 25. Nd3 { [%clk 0:32:24] } 25... Rb6 { [%clk 1:06:32] } 26. Nc5 { [%clk 0:28:23] } 26... Qa7 { [%clk 1:03:14] } 27. h3 { [%clk 0:23:49] } 27... Rab8 { [%clk 1:00:20] } 28. Qf5 { [%clk 0:22:40] } 28... Rd8 { [%clk 0:47:41] } 29. Ra2 { [%clk 0:18:19] } 29... b3 { [%clk 0:42:42] } 30. Rab2 { [%clk 0:16:47] } 30... Rb4 { [%clk 0:42:08] } 31. Qd3 { [%clk 0:11:49] } 31... Qb6 { [%clk 0:39:38] } 32. Qc3 { [%clk 0:10:41] } 32... g6 { [%clk 0:35:58] } 33. g3 { [%clk 0:10:05] } 33... Rc4 { [%clk 0:34:40] } 34. Qd2 { [%clk 0:07:14] } 34... Rb4 { [%clk 0:30:12] } 35. Qc3 { [%clk 0:07:37] } 35... Kg7 { [%clk 0:29:34] } 36. Qd3 { [%clk 0:05:12] } 36... Qa7 { [%clk 0:26:53] } 37. Qe2 { [%clk 0:03:40] } 37... Re8 { [%clk 0:25:28] } 38. Qd3 { [%clk 0:03:28] } 38... h5 { [%clk 0:23:44] } 39. h4 { [%clk 0:03:39] } 39... Qb6 { [%clk 0:18:30] } 40. Qc3 { [%clk 0:01:09] } 40... Rc4 { [%clk 0:17:01] } 41. Qd2 { [%clk 0:29:28] } 41... Qb4 { [%clk 0:43:24] } 42. Qd1 { [%clk 0:29:43] } 42... Rxc5 { [%clk 0:41:20] } 43. dxc5 { [%clk 0:29:14] } 43... Rb8 { [%clk 0:41:26] } 44. Qd4+ { [%clk 0:19:05] } 44... Qxd4 { [%clk 0:41:00] } 45. exd4 { [%clk 0:19:30] } 45... Rb4 { [%clk 0:41:26] } 46. Rd2 { [%clk 0:19:09] } 46... Nc4 { [%clk 0:36:42] } 47. Rd3 { [%clk 0:19:29] } 47... b2 { [%clk 0:36:52] } 48. Kf1 { [%clk 0:18:58] } 48... Rxa4 { [%clk 0:36:49] } 49. Ke2 { [%clk 0:19:07] } 49... Ra1 { [%clk 0:36:35] } 50. Rdd1 { [%clk 0:19:31] } 50... Ra2 { [%clk 0:33:53] } 51. Rd3 { [%clk 0:19:22] } 51... Ra1 { [%clk 0:34:20] } 52. Rdd1 { [%clk 0:19:45] } 52... Ra7 { [%clk 0:34:47] } 53. Kd3 { [%clk 0:12:02] } 53... Ra3+ { [%clk 0:31:29] } 54. Ke2 { [%clk 0:11:48] } 54... Rc3 { [%clk 0:31:00] } 55. Rf1 { [%clk 0:00:58] } 55... Kf6 { [%clk 0:30:55] } 56. f3 { [%clk 0:00:35] } 56... Rb3 { [%clk 0:29:51] } 57. g4 { [%clk 0:00:34] } 57... Na3 { [%clk 0:30:10] } 58. Rfd1 { [%clk 0:00:33] } 58... Nxb1 { [%clk 0:30:22] } 59. Rxb1 { [%clk 0:01:02] } 59... Ke6 { [%clk 0:29:33] } 60. Kf2 { [%clk 0:01:20] } 60... hxg4 { [%clk 0:29:39] } 61. fxg4 { [%clk 0:01:49] } 61... f5 { [%clk 0:30:08] } 62. gxf5+ { [%clk 0:01:27] } 62... gxf5 { [%clk 0:30:37] } 63. Ke2 { [%clk 0:00:53] } 63... f4 { [%clk 0:29:09] } 64. Kd2 { [%clk 0:01:19] } 64... Kf5 { [%clk 0:28:34] } 65. Kc2 { [%clk 0:01:45] } 65... Rb8 { [%clk 0:27:54] } 66. h5 { [%clk 0:02:09] } 66... Kg5 { [%clk 0:28:13] } 67. Rg1+ { [%clk 0:02:25] } 67... Kxh5 { [%clk 0:28:42] } 68. Kb1 { [%clk 0:02:36] } 68... f3 { [%clk 0:29:08] } 69. Rf1 { [%clk 0:02:48] } 69... Kg4 { [%clk 0:29:34] } 70. Rg1+ { [%clk 0:03:12] } 70... Kf4 { [%clk 0:30:00] } 71. Rg6 { [%clk 0:03:33] } 71... Rf8 { [%clk 0:30:26] } 0-1

[Event "Reykjavik Open 2025"]
[Site "Reykjavik, Iceland"]
[Date "2025.04.15"]
[Round "9.44"]
[White "Mensing, Adrian"]
[Black "Frayna, Janelle Mae"]
[Result "0-1"]
[WhiteElo "2078"]
[WhiteFideId "1043293"]
[BlackElo "2311"]
[BlackTitle "WGM"]
[BlackFideId "5212499"]
[TimeControl "90+30 +30 after 40 moves"]
[Variant "Standard"]
[ECO "A48"]
[Opening "East Indian Defense"]
[StudyName "Round 9"]
1. Nf3 { [%clk 1:22:22] } 1... Nf6 { [%clk 1:25:27] } 2. d4 { [%clk 1:19:11] } 2... g6 { [%clk 1:25:28] } 3. Nc3 { [%clk 1:19:00] } 3... Bg7 { [%clk 1:25:37] } 4. h4 { [%clk 1:18:54] } 4... h6 { [%clk 1:24:10] } 5. Bf4 { [%clk 1:16:00] } 5... d6 { [%clk 1:22:49] } 6. e4 { [%clk 1:13:38] } 6... Bg4 { [%clk 1:20:11] } 7. Qd2 { [%clk 1:13:07] } 7... Nc6 { [%clk 1:18:05] } 8. d5 { [%clk 1:06:24] } 8... Nb8 { [%clk 1:17:22] } 9. e5 { [%clk 0:57:28] } 9... dxe5 { [%clk 1:12:38] } 10. Nxe5 { [%clk 0:56:20] } 10... Bf5 { [%clk 1:11:14] } 11. Bc4 { [%clk 0:53:21] } 11... Nbd7 { [%clk 1:10:21] } 12. Nxf7 { [%clk 0:37:04] } 12... Kxf7 { [%clk 1:10:46] } 13. d6+ { [%clk 0:37:56] } 13... Be6 { [%clk 0:59:46] } 14. dxc7 { [%clk 0:31:56] } 14... Qe8 { [%clk 0:57:16] } 15. Bxe6+ { [%clk 0:31:09] } 15... Kxe6 { [%clk 0:57:43] } 16. O-O-O { [%clk 0:31:25] } 16... Kf7 { [%clk 0:57:49] } 17. Rhe1 { [%clk 0:30:54] } 17... Nb6 { [%clk 0:51:54] } 18. Qe2 { [%clk 0:24:45] } 18... Kg8 { [%clk 0:48:11] } 19. a4 { [%clk 0:19:38] } 19... Kh7 { [%clk 0:47:37] } 20. a5 { [%clk 0:19:19] } 20... Na4 { [%clk 0:47:26] } 21. Nb5 { [%clk 0:15:04] } 21... Qc6 { [%clk 0:45:08] } 22. Nd4 { [%clk 0:13:09] } 22... Qd5 { [%clk 0:44:26] } 23. Qe6 { [%clk 0:10:23] } 23... Qxa5 { [%clk 0:43:16] } 24. h5 { [%clk 0:02:41] } 24... Nxh5 { [%clk 0:40:11] } 25. Be5 { [%clk 0:03:05] } 25... Nc5 { [%clk 0:31:47] } 26. Qxe7 { [%clk 0:01:17] } 26... Rhe8 { [%clk 0:31:12] } 27. Qf7 { [%clk 0:00:37] } 27... Rf8 { [%clk 0:26:50] } 28. Qc4 { [%clk 0:00:47] } 28... Bxe5 { [%clk 0:25:33] } 29. Rxe5 { [%clk 0:01:03] } 29... Nb3+ { [%clk 0:25:55] } 30. Qxb3 { [%clk 0:00:40] } 30... Qxe5 { [%clk 0:26:22] } 31. Qxb7 { [%clk 0:00:54] } 31... Rac8 { [%clk 0:25:12] } 32. Nc6 { [%clk 0:00:34] } 32... Rxc7 { [%clk 0:24:19] } 0-1